fUST/lending_fUST_20250506
["ID","MTS","AMOUNT","RATE_DAILY","PERIOD"]
[360042644,1746512858230,-129.82,0.00015967,2]
[360042645,1746512864857,-151.0,0.00015868,2]
[360042646,1746512869714,-152.75289145,0.00015868,2]
[360042673,1746512970135,-1242.7781212,0.00015173,2]
[360042674,1746512970156,-300.0,0.00015799,2]
[360042675,1746512970179,-13855.04421422,0.000158,2]
[360042724,1746513033635,-1267.6290491,0.00015768,2]
[360042725,1746513033645,-300.0,0.00015799,2]
[360042726,1746513033655,-1200.0,0.00015799,2]
[360042727,1746513033664,-300.0,0.00015799,2]
[360042728,1746513033673,-1557.3539789,0.000158,2]
[360043803,1746513174675,-300.0,0.00015799,2]
[360043804,1746513174698,-500.0,0.00015799,2]
[360043805,1746513174720,-624.58528279,0.00015799,2]
[360043806,1746513174742,-606.1895087,0.00015799,2]
[360043807,1746513174765,-500.0,0.00015799,2]
[360043808,1746513174788,-462.43418494,0.00015799,2]
[360043809,1746513176773,-162.15109785,0.00015799,2]
[360043810,1746513176797,-89.93768738,0.00015799,2]
[360043811,1746513186306,-170.9015648,0.00015799,2]
[360043812,1746513190865,-129.0984352,0.00015799,2]
[360043813,1746513190888,-104.43016196,0.00015799,2]
[360043814,1746513197449,-157.0,0.00015799,2]
[360043815,1746513201965,-254.82165936,0.00015799,2]
[360043816,1746513201989,-91.55462978,0.000158,2]
[360043817,1746513206747,-310.17790059,0.000158,2]
[360043818,1746513213656,-186.44581027,0.000158,2]
[360043819,1746513217956,-151.19736324,0.000158,2]
[360043820,1746513222323,-196.24461118,0.00015767,2]
[360043821,1746513225517,-578.14403487,0.00015767,2]
[360043822,1746513225540,-2260.27208436,0.000158,2]
[360043823,1746513281464,-186.86794338,0.00015797,2]
[360043824,1746513305380,-179.9,0.00015789,3]
[360043825,1746513305403,-6.96794338,0.0001579,3]
[360043826,1746513308277,-186.86794338,0.0001579,3]
[360043827,1746513308942,-186.86794338,0.0001579,3]
[360043828,1746513310272,-186.86794338,0.0001579,3]
[360043829,1746513316768,-306.7928572,0.00015787,3]
[360043832,1746513403480,-1313.00690182,0.00015697,2]
[360043833,1746513403502,-232.9571428,0.00015787,3]
[360043834,1746513403524,-152.04822648,0.0001579,3]
[360043835,1746513403545,-359.81,0.0001579,3]
[360043836,1746513403565,-300.0,0.00015796,2]
[360043837,1746513403586,-1200.0,0.00015796,2]
[360043838,1746513403607,-300.0,0.00015796,2]
[360043839,1746513403629,-300.0,0.00015796,2]
[360043840,1746513403650,-17842.1777289,0.00015797,2]
[360043844,1746513498195,-173.68154185,0.00015794,2]
[360043845,1746513526474,-895.12974318,0.00015768,2]
[360043846,1746513526496,-126.31845815,0.00015794,2]
[360043847,1746513526526,-2123.99748214,0.00015795,2]
[360043848,1746513526557,-2123.99748214,0.00015795,2]
[360043849,1746513526585,-2123.99748214,0.00015795,2]
[360043850,1746513526614,-2123.99748214,0.00015795,2]
[360043851,1746513526643,-482.56187011,0.00015795,2]
[360043852,1746513528242,-300.0,0.00015795,2]
[360043853,1746513531816,-156.31073415,0.00015795,2]
[360043856,1746513723338,-218.93292221,0.00014782,2]
[360043857,1746513727210,-500.0,0.00014782,2]
[360043858,1746513735293,-300.0,0.00014782,2]
[360043870,1746514010420,-1242.7781212,0.00013781,2]
[360043871,1746514010447,-306.7928572,0.0001426,2]
[360043872,1746514010474,-500.0,0.0001468,2]
[360043873,1746514010499,-500.0,0.0001468,2]
[360043874,1746514010527,-500.0,0.0001468,2]
[360043875,1746514010555,-500.0,0.0001468,2]
[360043876,1746514010585,-500.0,0.0001468,2]
[360043877,1746514010611,-431.20702284,0.0001468,2]
[360043878,1746514010651,-500.0,0.0001468,2]
[360043879,1746514010676,-500.0,0.0001468,2]
[360043880,1746514010703,-500.0,0.0001468,2]
[360043881,1746514010732,-500.0,0.0001468,2]
[360043882,1746514010758,-486.02284357,0.0001468,2]
[360043883,1746514010780,-500.0,0.0001468,2]
[360043884,1746514010802,-500.0,0.0001468,2]
[360043885,1746514011058,-372.09866838,0.0001468,2]
[360043886,1746514011094,-500.0,0.0001468,2]
[360043887,1746514011115,-500.0,0.0001468,2]
[360043888,1746514011136,-245.11222639,0.0001468,2]
[360043889,1746514011158,-500.0,0.0001468,2]
[360043890,1746514011180,-500.0,0.0001468,2]
[360043891,1746514011201,-230.82871618,0.0001468,2]
[360043892,1746514011222,-500.0,0.0001468,2]
[360043893,1746514011242,-500.0,0.0001468,2]
[360043894,1746514011274,-500.0,0.0001468,2]
[360043895,1746514011295,-500.0,0.0001468,2]
[360043896,1746514011317,-500.0,0.0001468,2]
[360043897,1746514011337,-500.0,0.0001468,2]
[360043898,1746514011358,-223.0763746,0.0001468,2]
[360043906,1746514158249,-372.00727643,0.0001458,2]
[360043907,1746514160930,-243.7732074,0.0001458,2]
[360043908,1746514164712,-280.21079707,0.0001458,2]
[360043909,1746514170415,-162.61442802,0.0001458,2]
[360043910,1746514174365,-197.40290516,0.0001458,2]
[360043927,1746514232183,-759.89037897,0.00014572,2]
[360043929,1746514232193,-300.0,0.00014671,2]
[360043931,1746514232202,-1200.0,0.00014671,2]
[360043933,1746514232212,-203.0,0.00014671,2]
[360043935,1746514232222,-152.4554076,0.00014672,2]
[360043937,1746514232231,-500.0,0.00014672,2]
[360043939,1746514232240,-500.0,0.00014672,2]
[360043941,1746514232250,-500.0,0.00014672,2]
[360043943,1746514232260,-500.0,0.00014672,2]
[360043945,1746514232270,-500.0,0.00014672,2]
[360043947,1746514232281,-500.0,0.00014672,2]
[360043949,1746514232290,-1170.62463924,0.00014672,2]
[360043951,1746514232300,-500.0,0.00014672,2]
[360043953,1746514232310,-500.0,0.00014672,2]
[360043955,1746514232319,-500.0,0.00014672,2]
[360043957,1746514232329,-500.0,0.00014672,2]
[360043959,1746514232338,-159.02300254,0.00014672,2]
[360043961,1746514232347,-1170.62463924,0.00014672,2]
[360043963,1746514232358,-500.0,0.00014672,2]
[360043965,1746514232368,-546.38465207,0.00014672,2]
[360043967,1746514232378,-500.0,0.00014672,2]
[360043969,1746514232389,-500.0,0.00014672,2]
[360043971,1746514232398,-500.0,0.00014672,2]
[360043973,1746514232409,-1170.62463924,0.00014672,2]
[360043975,1746514232418,-500.0,0.00014672,2]
[360043977,1746514232427,-500.0,0.00014672,2]
[360043978,1746514232437,-500.0,0.00014672,2]
[360043980,1746514232446,-500.0,0.00014672,2]
[360043982,1746514232455,-250.0,0.00014672,2]
[360043984,1746514232465,-1170.62463924,0.00014672,2]
[360043986,1746514232474,-500.0,0.00014672,2]
[360043988,1746514232484,-500.0,0.00014672,2]
[360043989,1746514232494,-1170.62463924,0.00014672,2]
[360043990,1746514232504,-500.0,0.00014672,2]
[360043991,1746514232513,-500.0,0.00014672,2]
[360043992,1746514232523,-1170.62463924,0.00014672,2]
[360043993,1746514232532,-1170.62463924,0.00014672,2]
[360043994,1746514232542,-500.0,0.00014672,2]
[360043995,1746514232552,-500.0,0.00014672,2]
[360043996,1746514232562,-500.0,0.00014672,2]
[360043997,1746514232572,-1170.62463924,0.00014672,2]
[360043998,1746514232582,-500.0,0.00014672,2]
[360043999,1746514232592,-1170.62463924,0.00014672,2]
[360044000,1746514232602,-500.0,0.00014672,2]
[360044001,1746514232612,-500.0,0.00014672,2]
[360044002,1746514232621,-1170.62463924,0.00014672,2]
[360044003,1746514232631,-403.45829411,0.00014672,2]
[360044004,1746514232641,-500.0,0.00014672,2]
[360044005,1746514232650,-1170.62463924,0.00014672,2]
[360044006,1746514232660,-1170.62463924,0.00014672,2]
[360044007,1746514232670,-500.0,0.00014672,2]
[360044008,1746514232682,-1170.62463924,0.00014672,2]
[360044009,1746514232692,-500.0,0.00014672,2]
[360044010,1746514232702,-500.0,0.00014672,2]
[360044011,1746514232711,-1170.62463924,0.00014672,2]
[360044012,1746514232722,-598.60228436,0.00014672,2]
[360044013,1746514232731,-1170.62463924,0.00014672,2]
[360044014,1746514232740,-1170.62463924,0.00014672,2]
[360044015,1746514232750,-1170.62463924,0.00014672,2]
[360044016,1746514232761,-1170.62463924,0.00014672,2]
[360044017,1746514232771,-1170.62463924,0.00014672,2]
[360044018,1746514232780,-1170.62463924,0.00014672,2]
[360044019,1746514232790,-1170.62463924,0.00014672,2]
[360044020,1746514232800,-1170.62463924,0.00014672,2]
[360044021,1746514232810,-1170.62463924,0.00014672,2]
[360044022,1746514232819,-1170.62463924,0.00014672,2]
[360044023,1746514232828,-1170.62463924,0.00014672,2]
[360044024,1746514232838,-1170.62463924,0.00014672,2]
[360044025,1746514232849,-1170.62463924,0.00014672,2]
[360044026,1746514232859,-1170.62463924,0.00014672,2]
[360044027,1746514232870,-1170.62463924,0.00014672,2]
[360044028,1746514232880,-1170.62463924,0.00014672,2]
[360044029,1746514232890,-1170.62463924,0.00014672,2]
[360044030,1746514232900,-1170.62463924,0.00014672,2]
[360044031,1746514232910,-1170.62463924,0.00014672,2]
[360044032,1746514232919,-1170.62463924,0.00014672,2]
[360044033,1746514232928,-1170.62463924,0.00014672,2]
[360044034,1746514232938,-2772.21925255,0.00014672,2]
[360044035,1746514232948,-2772.21925255,0.00014672,2]
[360044036,1746514232957,-2772.21925255,0.00014672,2]
[360044037,1746514232967,-2772.21925255,0.00014672,2]
[360044038,1746514232977,-2772.21925255,0.00014672,2]
[360044039,1746514232987,-2772.21925255,0.00014672,2]
[360044040,1746514232997,-2772.21925255,0.00014672,2]
[360044041,1746514233007,-2772.21925255,0.00014672,2]
[360044042,1746514233017,-500.0,0.00014672,2]
[360044043,1746514233027,-2772.21925255,0.00014672,2]
[360044044,1746514233036,-500.0,0.00014672,2]
[360044045,1746514233046,-192.3143018,0.00014672,2]
[360044046,1746514233056,-2772.21925255,0.00014672,2]
[360044047,1746514233065,-2772.21925255,0.00014672,2]
[360044048,1746514233075,-2772.21925255,0.00014672,2]
[360044049,1746514233085,-2772.21925255,0.00014672,2]
[360044050,1746514233095,-2772.21925255,0.00014672,2]
[360044051,1746514233105,-2772.21925255,0.00014672,2]
[360044052,1746514233114,-2772.21925255,0.00014672,2]
[360044053,1746514233124,-2772.21925255,0.00014672,2]
[360044054,1746514233134,-2772.21925255,0.00014672,2]
[360044055,1746514233144,-2772.21925255,0.00014672,2]
[360044056,1746514233154,-2772.21925255,0.00014672,2]
[360044057,1746514233163,-517.92365827,0.00014672,2]
[360044058,1746514234424,-744.49484358,0.00014672,2]
[360044059,1746514237885,-500.0,0.00014671,2]
[360044060,1746514237911,-244.49484358,0.00014671,2]
[360044425,1746514243590,-255.50515642,0.00014671,2]
[360044427,1746514243600,-239.88753523,0.00014671,2]
[360044429,1746514243610,-500.0,0.00014671,2]
[360044431,1746514243619,-500.0,0.00014671,2]
[360044433,1746514243628,-64.37584506,0.00014671,2]
[360044713,1746514246399,-435.62415494,0.00014671,2]
[360044715,1746514246409,-253.0629508,0.00014671,2]
[360044718,1746514246419,-118.48796459,0.00014672,2]
[360044721,1746514246433,-1391.31278611,0.00014672,2]
[360044724,1746514246443,-2772.21925255,0.00014672,2]
[360044727,1746514246452,-2772.21925255,0.00014672,2]
[360044730,1746514246462,-2772.21925255,0.00014672,2]
[360044733,1746514246472,-2772.21925255,0.00014672,2]
[360044736,1746514246482,-2772.21925255,0.00014672,2]
[360044739,1746514246492,-2772.21925255,0.00014672,2]
[360044742,1746514246501,-2697.77838933,0.00014672,2]
[360045039,1746514249851,-74.44086322,0.00014672,2]
[360045044,1746514249886,-175.55913678,0.00014672,2]
[360045061,1746514252767,-238.63425817,0.00014672,2]
[360045062,1746514259787,-300.0,0.00014672,2]
[360045063,1746514265795,-161.69278599,0.00014671,2]
[360045067,1746514490079,155.2710783,0.00023,120]
[360045070,1746514638397,-170.44557392,0.0001458,2]
[360045071,1746514638420,-69.36532899,0.0001465,2]
[360045072,1746514644524,-181.32337286,0.0001465,2]
[360045074,1746514651782,-197.81853343,0.00014236,2]
[360045078,1746514712875,165262.6,0.00021,10]
[360045081,1746515059648,-154.87786292,0.00013592,2]
[360045099,1746515137334,653.356747,0.00020989,15]
[360045100,1746515169870,-498.06242938,0.00013592,2]
[360045101,1746515169892,-618.9528092,0.0001367,2]
[360045102,1746515169913,-325.320871,0.00013699,2]
[360045103,1746515169935,-1200.0,0.0001403,2]
[360045104,1746515169958,-300.0,0.0001403,2]
[360045105,1746515169981,-300.0,0.0001403,2]
[360045106,1746515170003,-500.0,0.00014031,2]
[360045107,1746515170027,-500.0,0.00014031,2]
[360045108,1746515170050,-288.73358715,0.00014031,2]
[360045109,1746515170073,-500.0,0.00014031,2]
[360045110,1746515170095,-500.0,0.00014031,2]
[360045111,1746515170117,-500.0,0.00014031,2]
[360045112,1746515170141,-500.0,0.00014031,2]
[360045113,1746515170164,-500.0,0.00014031,2]
[360045114,1746515170195,-1110.17476781,0.00014031,2]
[360045115,1746515170217,-500.0,0.00014031,2]
[360045116,1746515170241,-500.0,0.00014031,2]
[360045117,1746515170264,-500.0,0.00014031,2]
[360045118,1746515170286,-500.0,0.00014031,2]
[360045119,1746515170310,-500.0,0.00014031,2]
[360045120,1746515170332,-500.0,0.00014031,2]
[360045121,1746515170355,-525.0,0.00014031,2]
[360045122,1746515170388,-1110.17476781,0.00014031,2]
[360045123,1746515170410,-500.0,0.00014031,2]
[360045124,1746515170433,-289.56770286,0.00014031,2]
[360045125,1746515170456,-500.0,0.00014031,2]
[360045126,1746515170491,-934.01306479,0.00014031,2]
[360045127,1746515179764,-176.16170302,0.00014031,2]
[360045128,1746515179789,-24.01342551,0.00014031,2]
[360045129,1746515247711,-456.0,0.00014,2]
[360045130,1746515247733,-300.0,0.00014029,2]
[360045131,1746515247755,-300.0,0.0001403,2]
[360045132,1746515247777,-500.0,0.0001403,2]
[360045133,1746515247800,-500.0,0.0001403,2]
[360045134,1746515247823,-225.0,0.0001403,2]
[360045135,1746515247844,-500.0,0.0001403,2]
[360045136,1746515247867,-500.0,0.0001403,2]
[360045137,1746515247899,-1293.19610345,0.0001403,2]
[360045138,1746515247920,-500.0,0.0001403,2]
[360045139,1746515247941,-467.79152676,0.0001403,2]
[360045140,1746515247964,-152.85210353,0.0001403,2]
[360045141,1746515247985,-500.0,0.0001403,2]
[360045142,1746515248019,-1293.19610345,0.0001403,2]
[360045143,1746515248040,-500.0,0.0001403,2]
[360045144,1746515248061,-500.0,0.0001403,2]
[360045145,1746515248094,-1293.19610345,0.0001403,2]
[360045146,1746515248117,-218.76805936,0.0001403,2]
[360045149,1746515269634,-817.07750107,0.0001393,2]
[360045150,1746515275045,-265.00542295,0.0001393,2]
[360045151,1746515282337,-200.0,0.0001393,2]
[360045152,1746515287018,-152.44023618,0.0001393,2]
[360045153,1746515365121,-191.31492151,0.0001393,2]
[360045154,1746515365142,-9.96127396,0.00014028,2]
[360045155,1746515388391,-221.80329508,0.00014028,2]
[360045156,1746515394281,-68.23543096,0.00014028,2]
[360045157,1746515394304,-108.09184461,0.00014029,2]
[360045158,1746515399604,-391.90815539,0.00014029,2]
[360045159,1746515399627,-83.51645504,0.00014029,2]
[360045160,1746515405036,-189.7115144,0.00014028,2]
[360045161,1746515407764,-250.0,0.00014016,2]
[360045189,1746515438645,-334.76777302,0.00014016,2]
[360045654,1746515446947,-1422.60832154,0.00013929,2]
[360045656,1746515446957,-9.9289717,0.00014016,2]
[360045658,1746515446968,-151.0,0.00014023,2]
[360045660,1746515446977,-500.0,0.00014027,2]
[360045662,1746515446988,-500.0,0.00014027,2]
[360045664,1746515446998,-500.0,0.00014027,2]
[360045666,1746515447008,-500.0,0.00014027,2]
[360045668,1746515447018,-500.0,0.00014027,2]
[360045670,1746515447027,-500.0,0.00014027,2]
[360045672,1746515447037,-500.0,0.00014027,2]
[360045674,1746515447046,-449.88789925,0.00014027,2]
[360045676,1746515447056,-1178.75936821,0.00014027,2]
[360045678,1746515447065,-500.0,0.00014027,2]
[360045680,1746515447074,-300.0,0.00014027,2]
[360045682,1746515447083,-500.0,0.00014027,2]
[360045684,1746515447093,-1178.75936821,0.00014027,2]
[360045686,1746515447103,-500.0,0.00014027,2]
[360045688,1746515447113,-620.38333269,0.00014027,2]
[360045690,1746515447122,-500.0,0.00014027,2]
[360045692,1746515447132,-500.0,0.00014027,2]
[360045694,1746515447141,-1178.75936821,0.00014027,2]
[360045695,1746515447287,-1178.75936821,0.00014027,2]
[360045696,1746515447301,-1178.75936821,0.00014027,2]
[360045697,1746515447311,-1178.75936821,0.00014027,2]
[360045698,1746515447321,-1178.75936821,0.00014027,2]
[360045699,1746515447330,-1178.75936821,0.00014027,2]
[360045700,1746515447340,-1178.75936821,0.00014027,2]
[360045701,1746515447349,-1178.75936821,0.00014027,2]
[360045702,1746515447359,-1178.75936821,0.00014027,2]
[360045704,1746515447369,-1178.75936821,0.00014027,2]
[360045706,1746515447378,-1178.75936821,0.00014027,2]
[360045708,1746515447387,-1178.75936821,0.00014027,2]
[360045710,1746515447397,-1178.75936821,0.00014027,2]
[360045712,1746515447407,-1178.75936821,0.00014027,2]
[360045714,1746515447416,-1178.75936821,0.00014027,2]
[360045717,1746515447426,-1178.75936821,0.00014027,2]
[360045719,1746515447435,-1178.75936821,0.00014027,2]
[360045721,1746515447445,-1178.75936821,0.00014027,2]
[360045723,1746515447455,-1178.75936821,0.00014027,2]
[360045725,1746515447465,-1178.75936821,0.00014027,2]
[360045727,1746515447474,-1178.75936821,0.00014027,2]
[360045729,1746515447484,-1178.75936821,0.00014027,2]
[360045731,1746515447494,-1178.75936821,0.00014027,2]
[360045733,1746515447503,-1178.75936821,0.00014027,2]
[360045735,1746515447512,-1178.75936821,0.00014027,2]
[360045737,1746515447522,-1178.75936821,0.00014027,2]
[360045739,1746515447532,-1178.75936821,0.00014027,2]
[360045741,1746515447542,-1178.75936821,0.00014027,2]
[360045743,1746515447552,-1178.75936821,0.00014027,2]
[360045745,1746515447561,-1178.75936821,0.00014027,2]
[360045747,1746515447576,-1178.75936821,0.00014027,2]
[360045749,1746515447585,-1178.75936821,0.00014027,2]
[360045751,1746515447595,-1178.75936821,0.00014027,2]
[360045753,1746515447604,-110.2884856,0.00014028,2]
[360045755,1746515447615,-1200.0,0.00014028,2]
[360045757,1746515447625,-300.0,0.00014028,2]
[360045759,1746515447634,-622.6040358,0.00014028,2]
[360045761,1746515447644,-500.0,0.00014028,2]
[360045763,1746515447655,-500.0,0.00014028,2]
[360045765,1746515447665,-185.65190136,0.00014028,2]
[360045767,1746515447674,-500.0,0.00014028,2]
[360045769,1746515447684,-419.94148413,0.00014029,2]
[360045772,1746515447700,-14125.1087536,0.00014029,2]
[360045816,1746515478203,-193.26188945,0.00014028,2]
[360045817,1746515481695,-106.73811055,0.00014028,2]
[360045818,1746515481719,-59.26188945,0.00014029,2]
[360045819,1746515488272,-197.83910288,0.00014029,2]
[360045820,1746515491730,-166.0,0.00014029,2]
[360045821,1746515494870,-227.4376699,0.00014029,2]
[360045822,1746515505691,-164.48953,0.00014027,2]
[360045823,1746515508815,-174.16373671,0.00014,2]
[360045824,1746515508840,-190.3704736,0.00014027,2]
[360045825,1746515512725,-145.1399964,0.00014027,2]
[360045826,1746515512751,-63.74601591,0.00014029,2]
[360045827,1746515516006,-216.99279676,0.00014,2]
[360045828,1746515520237,-198.17130089,0.00014,2]
[360045829,1746515523546,-304.69188176,0.00014,2]
[360045830,1746515527078,-300.0,0.00014,2]
[360045831,1746515538210,-155.0,0.00014,2]
[360045832,1746515542093,-456.46511046,0.00014,2]
[360045833,1746515546010,-263.65862462,0.00014,2]
[360045840,1746515808252,-151.0,0.00014021,2]
[360045841,1746515808278,-13.01194511,0.00014023,2]
[360045842,1746515812970,-370.30893259,0.00014023,2]
[360045843,1746515812999,-616.36448858,0.00014023,2]
[360045844,1746515813025,-332.32466823,0.00014023,2]
[360045845,1746515813066,-96.0019106,0.00014023,2]
[360045846,1746515817377,-163.42128924,0.00014023,2]
[360045847,1746515822008,-173.0729231,0.00014023,2]
[360045848,1746515826709,-265.29220551,0.00014022,2]
[360045849,1746515833955,-152.0,0.00013923,2]
[360045850,1746515838246,-198.51022503,0.00013923,2]
[360045851,1746515838902,-997.20091895,0.00013923,2]
[360045852,1746515838929,-34.70779449,0.00014022,2]
[360045853,1746515838966,-629.90138766,0.00014023,2]
[360045854,1746515839008,-1062.3975106,0.00014023,2]
[360045855,1746515839047,-1062.3975106,0.00014023,2]
[360045856,1746515839084,-1062.3975106,0.00014023,2]
[360045857,1746515839120,-575.9973671,0.00014023,2]
[360045858,1746515843313,-211.37156323,0.00014023,2]
[360045859,1746515845837,-189.27317434,0.00014023,2]
[360045861,1746515849348,-85.75540593,0.00014023,2]
[360045862,1746515849386,-414.24459407,0.00014023,2]
[360045863,1746515852819,-211.05402609,0.00014023,2]
[360045864,1746515856787,-250.0,0.00014023,2]
[360045865,1746515860311,-187.09889044,0.00014023,2]
[360045866,1746515860346,-8.29090646,0.00014023,2]
[360045867,1746515865107,-206.61,0.00014023,2]
[360045868,1746515871272,-182.70779449,0.00014023,2]
[360045869,1746515877265,-406.77885473,0.00014023,2]
[360045870,1746515883739,-300.0,0.00014022,2]
[360045871,1746515883776,-28.00656,0.00014023,2]
[360045872,1746515884802,-176.00656,0.00014023,2]
[360045873,1746515893773,-53.99683492,0.00014023,2]
[360045874,1746515893811,-212.70036538,0.00014023,2]
[360045875,1746515896122,-212.70036538,0.00014023,2]
[360045876,1746515899868,-177.48716279,0.00014023,2]
[360045877,1746515904851,-182.67458334,0.00014023,2]
[360045878,1746515909315,-276.83503371,0.00014023,2]
[360045879,1746515909351,-72.86790641,0.00014023,2]
[360045880,1746515914773,-150.29705988,0.00014023,2]
[360045882,1746515929871,-389.3467017,0.00014023,2]
[360045883,1746515932598,-388.86677817,0.00014023,2]
[360045884,1746515938686,-61.01906444,0.00014023,2]
[360045885,1746515938720,-120.26914898,0.00014023,2]
[360045886,1746515942006,-252.90862775,0.00014023,2]
[360045887,1746515958291,-209.68169623,0.00014022,2]
[360045888,1746515958878,-90.31830377,0.00014022,2]
[360045889,1746515958916,-62.22102682,0.00014022,2]
[360045890,1746515963862,-437.77897318,0.00014022,2]
[360045891,1746515963909,-24.75908473,0.00014022,2]
[360045892,1746515970992,-158.74837362,0.00014022,2]
[360045893,1746515971025,-50.93332261,0.00014022,2]
[360045894,1746515975006,-246.74154091,0.00014022,2]
[360045895,1746515980041,-202.32513648,0.00014022,2]
[360045896,1746515980078,-235.9173471,0.00014022,2]
[360045898,1746516003256,-190.34894014,0.00013115,2]
[360045899,1746516007006,-109.65105986,0.00013115,2]
[360045900,1746516007045,-50.88234659,0.00013116,2]
[360045901,1746516013824,-295.40828407,0.00013024,2]
[360045902,1746516018825,-192.14655822,0.00013024,2]
[360045903,1746516022314,-300.0,0.00013024,2]
[360045904,1746516025564,-152.0,0.00013024,2]
[360045905,1746516029208,-151.0,0.00013024,2]
[360045906,1746516034219,-220.37099601,0.00013024,2]
[360045916,1746516079709,-193.96551507,0.00013023,2]
[360045917,1746516084506,-279.43697918,0.00013023,2]
[360045918,1746516089424,-26.59750575,0.00013023,2]
[360045919,1746516089474,-143.04177539,0.00013023,2]
[360045920,1746516096977,-412.95477337,0.00013023,2]
[360045921,1746516100259,-255.51283886,0.00013023,2]
[360045922,1746516103619,-165.59748559,0.00013023,2]
[360045923,1746516108355,-39.50760641,0.00013023,2]
[360045924,1746516108397,-117.9343281,0.00013023,2]
[360045925,1746516113439,-325.75794598,0.00013022,2]
[360045927,1746516119076,-156.48750878,0.00013022,2]
[360045928,1746516122286,-17.75454524,0.00013022,2]
[360045929,1746516122328,-93.11969799,0.00013023,2]
[360045930,1746516122368,-153.11813843,0.00013023,2]
[360045937,1746516168375,-267.19797254,0.00013022,2]
[360045938,1746516172346,-240.2667249,0.00013022,2]
[360045939,1746516172384,-63.82986891,0.00013022,2]
[360045940,1746516179823,-223.35432523,0.00013022,2]
[360045941,1746516183078,-212.81580586,0.00013022,2]
[360045942,1746516183119,-63.82986891,0.00013022,2]
[360045943,1746516191205,-436.17013109,0.00013022,2]
[360045944,1746516191244,-294.32854824,0.00013022,2]
[360045945,1746516191284,-300.0,0.00013022,2]
[360045946,1746516191321,-259.95929438,0.00013022,2]
[360045947,1746516196669,-240.04070562,0.00013022,2]
[360045948,1746516196718,-18.03116897,0.00013023,2]
[360045949,1746516213289,-240.2197683,0.00013022,2]
[360045950,1746516303169,-164.4895309,0.00012046,2]
[360045951,1746516303194,-199.72706408,0.00012821,2]
[360045952,1746516303832,-212.21659498,0.00012821,2]
[360045953,1746516306040,-199.72706408,0.00012821,2]
[360045954,1746516314437,-174.53594813,0.00012922,2]
[360045955,1746516317323,-473.27753687,0.00012922,2]
[360045958,1746516332774,-227.70224622,0.0001282,2]
[360045959,1746516336789,-196.46845104,0.0001282,2]
[360045960,1746516342430,-240.48020269,0.0001282,2]
[360045961,1746516348878,-227.70224622,0.0001282,2]
[360045962,1746516357866,-253.16629809,0.0001302,2]
[360045963,1746516363063,-209.4904867,0.00012046,2]
[360045964,1746516363088,-46.83370191,0.0001302,2]
[360045965,1746516363118,-387.6955471,0.0001302,2]
[360045966,1746516368134,-302.8139662,0.0001302,2]
[360045967,1746516374087,-199.02021691,0.0001302,2]
[360045969,1746516469685,-300.0,0.00013019,2]
[360045971,1746516476354,-151.0,0.0001302,2]
[360045972,1746516480907,-152.75289145,0.0001302,2]
[360045975,1746516601288,500.0,0.00022,30]
[360046016,1746516632625,-1470.17018429,0.00012919,2]
[360046017,1746516632635,-152.0,0.00013007,2]
[360046018,1746516632644,-151.0,0.00013014,2]
[360046019,1746516632653,-300.0,0.00013017,2]
[360046020,1746516632664,-300.0,0.00013018,2]
[360046021,1746516632673,-300.0,0.00013018,2]
[360046022,1746516632682,-300.0,0.00013018,2]
[360046023,1746516632691,-1200.0,0.00013018,2]
[360046024,1746516632701,-355.22528821,0.00013018,2]
[360046025,1746516632710,-500.0,0.00013018,2]
[360046026,1746516632720,-406.02998376,0.00013018,2]
[360046027,1746516632730,-50000.0,0.00013019,2]
[360046028,1746516632740,-1006.44833482,0.00013019,2]
[360046029,1746516632752,-1006.44833482,0.00013019,2]
[360046030,1746516632763,-1006.44833482,0.00013019,2]
[360046031,1746516632772,-1006.44833482,0.00013019,2]
[360046032,1746516632781,-1006.44833482,0.00013019,2]
[360046033,1746516632791,-1006.44833482,0.00013019,2]
[360046034,1746516632801,-1006.44833482,0.00013019,2]
[360046035,1746516632810,-1006.44833482,0.00013019,2]